bitfinex-derivatives/quotes_BTCF0:USTF0_20241009
["timestamp","ask_amount","ask_price","bid_price","bid_amount"]
[1728456318663,0.321088,62459.0,62458.0,0.3678]
[1728456318864,0.322088,62459.0,62458.0,0.011]
[1728456319068,0.322088,62459.0,62458.0,0.3718]
[1728456319461,0.321088,62459.0,62458.0,0.3648]
[1728456319669,0.321088,62459.0,62458.0,0.008]
[1728456320062,0.415888,62459.0,62458.0,0.008]
[1728456320866,0.415888,62459.0,62458.0,0.007]
[1728456321664,0.414888,62459.0,62458.0,0.007]
[1728456324468,0.414888,62459.0,62446.0,0.05041149]
[1728456324469,1.41512,62459.0,62446.0,0.00240152]
[1728456324668,0.12,62447.0,62446.0,0.00240152]
[1728456324973,0.320103,62447.0,62446.0,0.00240152]
[1728456325775,0.321103,62447.0,62446.0,0.01640152]
[1728456326572,0.322103,62447.0,62446.0,0.04068332]
[1728456327163,0.322103,62447.0,62446.0,0.40148332]
[1728456328365,0.322103,62447.0,62446.0,0.04068332]
[1728456328559,0.322103,62447.0,62446.0,0.40148332]
[1728456334075,0.322103,62447.0,62446.0,0.04068332]
[1728456337169,0.322103,62447.0,62446.0,0.40148332]
[1728456337974,0.322103,62447.0,62446.0,0.3990818]
[1728456338179,0.322103,62447.0,62446.0,0.0382818]
[1728456339678,0.322103,62447.0,62446.0,0.014]
[1728456346189,0.682903,62447.0,62446.0,0.014]
[1728456349789,0.322103,62447.0,62446.0,0.014]
[1728456350476,0.418803,62447.0,62446.0,0.014]
[1728456353186,0.298803,62447.0,62446.0,0.014]
[1728456353378,0.418803,62447.0,62446.0,0.014]
[1728456355388,0.45223469,62447.0,62446.0,0.014]
[1728456355984,0.35553469,62447.0,62446.0,0.014]
[1728456356291,0.35553469,62447.0,62446.0,0.009]
[1728456356292,0.321103,62447.0,62446.0,0.009]
[1728456356487,0.322103,62447.0,62446.0,0.01]
[1728456356686,0.35555623,62447.0,62446.0,0.008]
[1728456360686,0.35557602,62447.0,62446.0,0.008]
[1728456362388,0.322103,62447.0,62446.0,0.008]
[1728456363196,0.080111,62441.0,62440.0,0.02491673]
[1728456363395,0.080116,62438.0,62436.0,0.04800997]
[1728456363587,0.12,62437.0,62436.0,0.04800997]
[1728456363788,0.310116,62437.0,62436.0,0.0239601]
[1728456363993,0.310116,62437.0,62435.0,0.08080997]
[1728456364498,0.080118,62436.0,62435.0,0.08080997]
[1728456364687,0.190118,62436.0,62435.0,0.07219099]
[1728456365199,0.190118,62436.0,62435.0,0.04900997]
[1728456365887,0.190118,62436.0,62435.0,0.001]
[1728456367390,0.080121,62433.0,62432.0,0.3608]
[1728456367588,0.320121,62433.0,62432.0,0.3608]
[1728456368189,0.320121,62433.0,62431.0,0.00240257]
[1728456368190,0.080123,62432.0,62431.0,0.00240257]
[1728456368393,0.190123,62432.0,62431.0,0.00240257]
[1728456368590,0.080129,62427.0,62422.0,0.3645]
[1728456368790,0.080134,62423.0,62422.0,0.36168]
[1728456368996,0.080134,62423.0,62422.0,0.42488962]
[1728456368997,0.190134,62423.0,62422.0,0.42488962]
[1728456369998,0.191134,62423.0,62422.0,0.42588962]
[1728456370600,0.190134,62423.0,62422.0,0.42488962]
[1728456370800,0.191134,62423.0,62422.0,0.42588962]
[1728456371689,0.792134,62423.0,62422.0,0.42588962]
[1728456372005,1.272734,62423.0,62422.0,0.06508962]
[1728456372608,1.338334,62423.0,62422.0,0.06508962]
[1728456374099,1.338334,62423.0,62422.0,0.001]
[1728456377004,1.458334,62423.0,62422.0,0.001]
[1728456377891,0.192134,62423.0,62422.0,0.001]
[1728456378097,0.112,62423.0,62422.0,0.081136]
[1728456378896,0.192134,62423.0,62422.0,0.001]
[1728456383103,0.112,62423.0,62422.0,0.081136]
[1728456383410,0.0037,62430.0,62422.0,1.4424]
[1728456383708,0.1137,62430.0,62429.0,0.440927]
[1728456383911,0.11,62430.0,62429.0,0.440927]
[1728456384498,0.111,62430.0,62429.0,0.440927]
[1728456385918,0.112,62430.0,62429.0,0.440927]
[1728456386609,0.002,62430.0,62429.0,0.442927]
[1728456387403,0.0037,62435.0,62429.0,1.44336]
[1728456387598,0.1137,62435.0,62434.0,0.44092]
[1728456387807,0.080114,62439.0,62437.0,0.080116]
[1728456388014,0.180114,62439.0,62437.0,0.080116]
[1728456388203,0.180114,62439.0,62438.0,0.080115]
[1728456388403,0.1,62439.0,62438.0,0.080115]
[1728456388609,0.00240316,62440.0,62439.0,0.080114]
[1728456388819,0.00240316,62440.0,62439.0,0.620914]
[1728456389723,0.00240316,62440.0,62439.0,0.440914]
[1728456390216,0.0037,62444.0,62439.0,1.62128]
[1728456390416,0.0037,62447.0,62445.0,0.080105]
[1728456390614,0.18,62451.0,62446.0,0.455]
[1728456390819,0.080101,62449.0,62446.0,0.455]
[1728456391120,0.190101,62449.0,62446.0,0.455]
[1728456391720,0.0037,62452.0,62448.0,0.080101]
[1728456391917,0.26907644,62453.0,62449.0,0.0801]
[1728456392721,0.26907644,62453.0,62451.0,0.080098]
[1728456392911,0.080096,62453.0,62452.0,0.080097]
[1728456393119,1.00210001,62455.0,62453.0,0.080095]
[1728456393326,1.05652,62455.0,62453.0,0.080095]
[1728456394319,1.05752,62455.0,62453.0,0.080095]
[1728456395523,1.23752,62455.0,62453.0,0.080095]
[1728456395829,1.317613,62455.0,62453.0,0.080095]
[1728456396731,1.317613,62455.0,62453.0,0.082095]
[1728456397728,1.23752,62455.0,62454.0,0.080094]
[1728456397932,0.99752,62455.0,62454.0,0.080094]
[1728456398722,0.99652,62455.0,62454.0,0.080094]
[1728456398926,1.02752,62455.0,62454.0,0.080094]
[1728456399121,0.99752,62455.0,62454.0,0.080094]
[1728456399525,0.99652,62455.0,62454.0,0.080094]
[1728456399832,0.99652,62455.0,62454.0,0.084094]
[1728456400326,0.99752,62455.0,62454.0,0.084094]
[1728456400537,0.99752,62455.0,62454.0,0.086094]
[1728456402432,0.99752,62455.0,62454.0,0.085094]
[1728456402727,1.257613,62455.0,62454.0,0.085094]
[1728456403129,1.28752,62455.0,62454.0,0.085094]
[1728456408030,1.10752,62455.0,62454.0,0.085094]
[1728456410722,1.10752,62455.0,62454.0,0.445894]
[1728456415036,1.10752,62455.0,62454.0,0.085094]
[1728456415331,1.10752,62455.0,62454.0,0.445894]
[1728456416742,1.187613,62455.0,62454.0,0.445894]
[1728456417435,1.10752,62455.0,62454.0,0.445894]
[1728456420338,1.10752,62455.0,62454.0,0.565894]
[1728456422838,1.10752,62455.0,62454.0,0.62998362]
[1728456423044,1.10752,62455.0,62454.0,0.565894]
[1728456427149,0.99752,62455.0,62454.0,1.646254]
[1728456427351,0.99752,62455.0,62454.0,1.75550441]
[1728456427652,0.99752,62455.0,62454.0,1.85163884]
[1728456428239,0.99752,62455.0,62454.0,1.85155719]
[1728456428444,0.99752,62455.0,62454.0,1.81542276]
[1728456429152,0.99752,62455.0,62454.0,1.81742276]
[1728456429350,0.99752,62455.0,62454.0,1.91345403]
[1728456429847,0.99752,62455.0,62454.0,1.708254]
[1728456431055,0.99752,62455.0,62454.0,1.707254]
[1728456431644,0.98196529,62455.0,62454.0,1.707254]
[1728456431845,0.95952376,62455.0,62454.0,1.707254]
[1728456432752,0.93661609,62455.0,62454.0,1.707254]
[1728456433155,0.0037,62463.0,62455.0,0.48032]
[1728456433460,0.09047498,62471.0,62470.0,0.080074]
[1728456433652,0.08247498,62471.0,62470.0,0.440874]
[1728456434451,0.00240198,62471.0,62470.0,0.440874]
[1728456434646,0.0639,62476.0,62475.0,0.080068]
[1728456434847,0.18888778,62488.0,62475.0,0.080068]
[1728456434848,0.19688778,62488.0,62475.0,0.5408]
[1728456435050,0.080059,62482.0,62479.0,0.080062]
[1728456435861,0.080061,62481.0,62479.0,0.080062]
[1728456436648,0.080061,62480.0,62479.0,0.080062]
[1728456436851,0.080061,62480.0,62479.0,0.005]
[1728456437251,0.18,62480.0,62475.0,0.3608]
[1728456437545,0.380061,62480.0,62479.0,0.005]
[1728456437758,0.380061,62480.0,62479.0,0.007]
[1728456437953,0.380061,62480.0,62479.0,0.002]
[1728456438167,0.380061,62480.0,62479.0,0.006]
[1728456439754,0.380061,62480.0,62479.0,0.004]
[1728456440261,0.380061,62480.0,62479.0,0.002]
[1728456440455,0.380061,62480.0,62479.0,0.003]
[1728456441363,0.381061,62480.0,62479.0,0.001]
[1728456443261,0.121,62480.0,62479.0,0.001]
[1728456443465,0.201061,62480.0,62479.0,0.001]
[1728456443769,0.121,62480.0,62479.0,0.3618]
[1728456444066,0.121,62480.0,62479.0,0.621862]
[1728456444667,0.001,62480.0,62479.0,0.621862]
[1728456444859,0.111,62480.0,62479.0,0.621862]
[1728456447671,0.001,62480.0,62479.0,0.621862]
[1728456448669,0.02393822,62498.0,62479.0,1.62196]
[1728456448861,0.080052,62487.0,62486.0,0.3608]
[1728456449164,0.200052,62487.0,62486.0,0.3608]
[1728456450064,0.080056,62484.0,62481.0,0.0037]
[1728456450370,0.200056,62484.0,62481.0,0.080059]
[1728456451373,0.200056,62484.0,62481.0,0.084059]
[1728456451867,0.200056,62484.0,62481.0,0.085059]
[1728456453069,0.200056,62484.0,62483.0,0.3608]
[1728456453457,0.200056,62484.0,62481.0,0.005]
[1728456453663,0.200056,62484.0,62482.0,0.080058]
[1728456454465,0.200056,62484.0,62483.0,0.3608]
[1728456456966,0.200056,62484.0,62483.0,0.3618]
[1728456460072,0.23501605,62484.0,62483.0,0.3618]
[1728456462777,0.23501605,62484.0,62483.0,0.001]
[1728456462978,0.23501605,62484.0,62483.0,0.3618]
[1728456463682,0.2756177,62484.0,62483.0,0.3618]
[1728456464582,0.3956177,62484.0,62483.0,0.3618]
[1728456467982,0.320056,62484.0,62483.0,0.3618]
[1728456468685,0.200056,62484.0,62483.0,0.3618]
[1728456468889,0.320056,62484.0,62483.0,0.3618]
[1728456469979,0.321056,62484.0,62483.0,0.3618]
[1728456470185,0.321056,62484.0,62483.0,0.3608]
[1728456470483,0.323056,62484.0,62483.0,0.3608]
[1728456473084,0.203056,62484.0,62483.0,0.3608]
[1728456481297,0.2379296,62484.0,62483.0,0.3608]
[1728456481491,0.3579296,62484.0,62483.0,0.3608]
[1728456481687,0.080061,62480.0,62479.0,0.02505086]
[1728456481896,0.190061,62480.0,62478.0,0.080064]
[1728456482192,0.190061,62480.0,62477.0,0.3608]
[1728456482193,0.080064,62478.0,62477.0,0.3608]
[1728456482393,0.26521337,62478.0,62477.0,0.3608]
[1728456483087,0.26521337,62478.0,62477.0,0.38564279]
[1728456483601,0.26521337,62478.0,62477.0,0.39064279]
[1728456484298,0.26521337,62478.0,62477.0,0.38864279]
[1728456484698,0.26521337,62478.0,62477.0,0.39064279]
[1728456484893,0.26521337,62478.0,62477.0,0.02984279]
[1728456485395,0.26521337,62478.0,62477.0,0.02784279]
[1728456485699,0.26521337,62478.0,62477.0,0.02984279]
[1728456485898,0.38521337,62478.0,62477.0,0.02984279]
[1728456486799,0.18514937,62478.0,62477.0,0.10990779]
[1728456487099,0.07514937,62478.0,62477.0,0.10990779]
[1728456487304,0.03477452,62478.0,62477.0,0.14100779]
[1728456488399,0.14760863,62487.0,62485.0,0.080053]
[1728456488600,0.26390863,62487.0,62486.0,0.080053]
[1728456488799,0.12,62487.0,62486.0,0.080053]
[1728456489000,0.1605902,62487.0,62486.0,0.080053]
[1728456489195,0.24,62487.0,62486.0,0.080053]
[1728456489504,0.320052,62487.0,62486.0,0.080053]
[1728456489903,0.325052,62487.0,62486.0,0.080053]
[1728456491007,0.326052,62487.0,62486.0,0.080053]
[1728456491503,0.206052,62487.0,62486.0,0.080053]
[1728456492694,0.203052,62487.0,62486.0,0.080053]
[1728456495409,0.203052,62487.0,62486.0,0.10510211]
[1728456503309,0.203052,62487.0,62486.0,0.02504911]
[1728456503511,0.123,62487.0,62485.0,0.3608]
[1728456503709,0.080053,62486.0,62485.0,0.3608]
[1728456503919,0.200053,62486.0,62485.0,0.3608]
[1728456504838,0.27493191,62486.0,62485.0,0.3608]
[1728456505013,0.27493191,62486.0,62485.0,0.02478664]
[1728456505214,0.27493191,62486.0,62484.0,0.48164]
[1728456505415,0.07487891,62485.0,62484.0,0.4808]
[1728456505722,0.18487891,62485.0,62484.0,0.4808]
[1728456506016,0.26493391,62485.0,62484.0,0.3608]
[1728456506437,0.080056,62484.0,62483.0,0.080056]
[1728456506719,0.38493491,62484.0,62483.0,0.080056]
[1728456507515,0.38493491,62484.0,62483.0,0.10426866]
[1728456507923,0.38472806,62484.0,62483.0,0.10526866]
[1728456508515,0.38472806,62484.0,62483.0,0.02521266]
[1728456510123,0.38572806,62484.0,62483.0,0.02521266]
[1728456510423,0.18567206,62484.0,62483.0,0.22426966]
[1728456510625,0.14555365,62484.0,62483.0,0.22426966]
[1728456510927,0.14555365,62484.0,62483.0,0.10426966]
[1728456512023,0.14555365,62484.0,62483.0,0.10526966]
[1728456512726,0.14561743,62484.0,62483.0,0.10526966]
[1728456512927,0.11,62484.0,62483.0,0.10526966]
[1728456513714,0.111,62484.0,62483.0,0.10526966]
[1728456514419,0.111,62484.0,62483.0,0.10426966]
[1728456514614,0.111,62484.0,62483.0,0.10526966]
[1728456516018,0.11,62484.0,62483.0,0.10526966]
[1728456517027,0.111,62484.0,62483.0,0.10526966]
[1728456517521,0.111,62484.0,62483.0,0.10426966]
[1728456519931,0.18578551,62484.0,62483.0,0.10426966]
[1728456523834,0.26584151,62484.0,62483.0,0.02421266]
[1728456524031,0.080059,62482.0,62480.0,0.3608]
[1728456524220,0.15484551,62481.0,62479.0,0.080062]
[1728456524426,0.07478551,62480.0,62479.0,0.10456481]
[1728456525018,0.15484651,62480.0,62479.0,0.10456481]
[1728456525726,0.15484651,62480.0,62479.0,0.10956481]
[1728456525933,0.15484651,62480.0,62479.0,0.47036481]
[1728456526630,0.15484651,62480.0,62479.0,0.47236481]
[1728456527132,0.11466715,62480.0,62479.0,0.47236481]
[1728456527822,0.080061,62480.0,62479.0,0.47236481]
[1728456529643,0.080061,62480.0,62479.0,0.11156481]
[1728456529931,0.080061,62480.0,62479.0,0.47236481]
[1728456530124,0.080061,62480.0,62479.0,0.11156481]
[1728456530836,0.080061,62480.0,62479.0,0.47236481]
[1728456531732,0.080061,62480.0,62479.0,0.11156481]
[1728456531936,0.080061,62480.0,62479.0,0.47236481]
[1728456533428,0.080061,62480.0,62479.0,0.11156481]
[1728456533635,0.080061,62480.0,62479.0,0.47236481]
[1728456534630,0.080061,62480.0,62479.0,0.11156481]
[1728456534821,0.11457906,62480.0,62479.0,0.47236481]
[1728456535021,0.11457906,62480.0,62479.0,0.11156481]
[1728456535237,0.11457906,62480.0,62479.0,0.47236481]
[1728456536826,0.11457906,62480.0,62479.0,0.11156481]
[1728456537327,0.11455462,62480.0,62479.0,0.11156481]
[1728456537523,0.11455462,62480.0,62479.0,0.03150281]
[1728456537829,0.26459291,62480.0,62479.0,0.03150281]
[1728456538741,0.26459291,62480.0,62479.0,0.02950281]
[1728456538927,0.26459291,62480.0,62479.0,0.03050281]
[1728456539127,0.26459291,62480.0,62479.0,0.02650281]
[1728456539325,0.22455462,62480.0,62479.0,0.02650281]
[1728456539730,0.22455462,62480.0,62479.0,0.02550281]
[1728456542135,0.26456896,62480.0,62479.0,0.02550281]
[1728456543035,0.190061,62480.0,62479.0,0.02550281]
[1728456545641,0.190061,62480.0,62479.0,0.10556481]
[1728456546839,0.190061,62480.0,62479.0,0.15358046]
[1728456547742,0.190061,62480.0,62479.0,0.10556481]
[1728456550045,0.26473716,62480.0,62479.0,0.10556481]
[1728456550652,0.29928724,62480.0,62479.0,0.10556481]
[1728456550841,0.26473169,62480.0,62479.0,0.10556481]
[1728456552251,0.190061,62480.0,62479.0,0.10556481]
[1728456552445,0.26474291,62480.0,62479.0,0.10556481]
[1728456553044,0.2301847,62480.0,62479.0,0.10556481]
[1728456553352,0.190061,62480.0,62479.0,0.10556481]
[1728456555954,0.190061,62480.0,62479.0,0.46636481]
[1728456556751,0.190061,62480.0,62479.0,0.10556481]
[1728456564348,0.190061,62480.0,62479.0,0.02550281]
[1728456564553,0.190061,62480.0,62479.0,0.001]
[1728456573058,0.22450668,62480.0,62479.0,0.001]
[1728456581164,0.190061,62480.0,62479.0,0.001]
[1728456585167,0.22442723,62480.0,62479.0,0.001]
[1728456586066,1.30458723,62480.0,62475.0,0.0037]
[1728456586273,1.30458723,62480.0,62474.0,0.3608]
[1728456586274,0.080068,62475.0,62474.0,0.3608]
[1728456586457,0.200068,62475.0,62474.0,0.3608]
[1728456587269,0.200068,62475.0,62471.0,0.3608]
[1728456587577,0.12,62472.0,62471.0,0.3608]
[1728456587777,0.22,62472.0,62471.0,0.3608]
[1728456588163,0.25424428,62472.0,62471.0,0.3608]
[1728456588964,0.33430039,62472.0,62471.0,0.3708]
[1728456589165,0.33430039,62472.0,62471.0,0.01]
[1728456589363,0.33430039,62472.0,62471.0,0.3708]
[1728456589566,0.33430039,62472.0,62471.0,0.3778]
[1728456595082,0.300071,62472.0,62471.0,0.3778]
[1728456598077,0.300071,62472.0,62471.0,0.017]
[1728456598671,0.300071,62472.0,62471.0,0.3778]
[1728456603075,0.3342206,62472.0,62471.0,0.3778]
[1728456605378,0.3342206,62472.0,62471.0,0.017]
[1728456610091,0.300071,62472.0,62471.0,0.017]
[1728456613489,0.69481563,62472.0,62471.0,0.017]
[1728456615180,0.660871,62472.0,62471.0,0.017]
[1728456618400,0.300071,62472.0,62471.0,0.017]
[1728456619286,0.362371,62472.0,62471.0,0.017]
[1728456620482,0.842571,62472.0,62471.0,0.017]
[1728456620886,0.362371,62472.0,62471.0,0.017]
[1728456621097,1.442571,62472.0,62471.0,0.017]
[1728456621399,1.47660054,62472.0,62471.0,0.017]
[1728456621785,0.87660054,62472.0,62471.0,0.017]
[1728456623092,1.23740054,62472.0,62471.0,0.017]
[1728456623594,1.23730392,62472.0,62471.0,0.017]
[1728456623989,0.75710392,62472.0,62471.0,0.017]
[1728456625186,0.79646788,62472.0,62471.0,0.017]
[1728456626098,0.84562825,62472.0,62471.0,0.017]
[1728456626406,0.08008,62465.0,62464.0,0.0037]
[1728456626592,0.08008,62465.0,62462.0,0.02487311]
[1728456626593,0.080083,62463.0,62462.0,0.02487311]
[1728456626793,0.14393292,62463.0,62457.0,0.0037]
[1728456626992,0.14393292,62463.0,62455.0,0.3950414]
[1728456626993,0.12,62458.0,62455.0,0.3950414]
[1728456627197,0.300089,62458.0,62455.0,0.3950414]
[1728456629291,0.301089,62458.0,62457.0,0.3608]
[1728456629691,0.302089,62458.0,62457.0,0.3608]
[1728456630395,0.302089,62458.0,62457.0,0.013]
[1728456630596,0.302089,62458.0,62457.0,0.3738]
[1728456631493,0.302089,62458.0,62457.0,0.013]
[1728456631703,0.302089,62458.0,62457.0,0.3868]
[1728456633910,0.302089,62458.0,62457.0,0.43480781]
[1728456634094,0.302089,62458.0,62457.0,0.51489881]
[1728456634403,0.302089,62458.0,62457.0,0.466891]
[1728456634901,0.302089,62458.0,62457.0,0.106091]
[1728456635099,0.302089,62458.0,62457.0,0.466891]
[1728456635700,0.302089,62458.0,62457.0,0.106091]
[1728456635900,0.302089,62458.0,62457.0,0.466891]
[1728456636399,0.302089,62458.0,62457.0,0.106091]
[1728456636612,0.302089,62458.0,62457.0,0.466891]
[1728456637299,0.302089,62458.0,62457.0,0.106091]
[1728456637603,0.302089,62458.0,62457.0,0.466891]
[1728456638501,0.302089,62458.0,62457.0,0.106091]
[1728456638695,0.302089,62458.0,62457.0,0.466891]
[1728456643307,0.302089,62458.0,62457.0,0.53095515]
[1728456645408,0.302089,62458.0,62457.0,0.17015515]
[1728456645807,0.302089,62458.0,62457.0,0.53095515]
[1728456648302,0.302089,62458.0,62457.0,0.466891]
[1728456648706,0.302089,62458.0,62457.0,0.106091]
[1728456648907,0.302089,62458.0,62457.0,0.466891]
[1728456649711,0.302089,62458.0,62457.0,0.106091]
[1728456649912,0.302089,62458.0,62457.0,0.466891]
[1728456650809,0.302089,62458.0,62457.0,0.106091]
[1728456651003,0.302089,62458.0,62457.0,0.466891]
[1728456652604,0.102,62458.0,62457.0,0.466891]
[1728456652809,0.002,62458.0,62457.0,0.466891]
[1728456653318,0.002,62458.0,62457.0,1.59525894]
[1728456653509,0.002,62458.0,62457.0,1.547211]
[1728456654311,0.002,62458.0,62457.0,1.59526946]
[1728456655120,0.002,62458.0,62457.0,1.547211]
[1728456659609,0.002,62458.0,62457.0,0.947211]
[1728456660116,0.002,62458.0,62457.0,0.586411]
[1728456660317,0.002,62458.0,62457.0,0.947211]
[1728456662921,0.002,62458.0,62457.0,0.466891]
[1728456664825,0.002,62458.0,62457.0,0.106091]
[1728456665023,0.002,62458.0,62457.0,0.466891]
[1728456665923,0.002,62458.0,62457.0,0.106091]
[1728456666226,0.002,62458.0,62457.0,0.466891]
[1728456667126,0.002,62458.0,62457.0,0.106091]
[1728456667320,0.002,62458.0,62457.0,0.466891]
[1728456671035,0.002,62458.0,62457.0,0.106091]
[1728456671228,0.002,62458.0,62457.0,0.466891]
[1728456673639,0.002,62458.0,62457.0,0.54697119]
[1728456673938,0.002,62458.0,62457.0,0.90777119]
[1728456674631,0.002,62458.0,62457.0,1.01720373]
[1728456674938,0.002,62458.0,62457.0,0.90777119]
[1728456675135,0.002,62458.0,62457.0,1.01720479]
[1728456678346,0.002,62458.0,62457.0,0.827691]
[1728456682151,0.002,62458.0,62457.0,0.106091]
[1728456682353,0.002,62458.0,62457.0,0.87573883]
[1728456685051,0.002,62458.0,62457.0,0.15413883]
[1728456685252,0.002,62458.0,62457.0,0.87573883]
[1728456685456,0.002,62458.0,62457.0,0.93715845]
[1728456690160,0.002,62458.0,62457.0,0.21555845]
[1728456690458,0.002,62458.0,62457.0,0.93715845]
[1728456690953,0.002,62458.0,62457.0,0.93715147]
[1728456692353,0.002,62458.0,62457.0,1.01726445]
[1728456693457,0.002,62458.0,62457.0,0.827691]
[1728456700361,0.002,62458.0,62457.0,0.9371444]
[1728456703164,0.002,62458.0,62457.0,0.2155444]
[1728456703364,0.002,62458.0,62457.0,0.9371444]
[1728456706170,0.0037,62464.0,62457.0,0.9371444]
[1728456706474,0.0037,62467.0,62466.0,0.080079]
[1728456706672,0.080064,62478.0,62473.0,0.08007]
[1728456706881,0.080064,62478.0,62476.0,0.04806848]
[1728456707066,0.080064,62478.0,62475.0,0.200067]
[1728456707273,0.080064,62478.0,62475.0,0.24809241]
[1728456707774,0.200064,62478.0,62475.0,0.12809241]
[1728456708277,0.200064,62478.0,62475.0,0.080067]
[1728456709177,0.200064,62478.0,62475.0,0.088067]
[1728456711475,0.280129,62478.0,62475.0,0.088067]
[1728456711675,0.200064,62478.0,62475.0,0.088067]
[1728456711878,0.08246669,62477.0,62475.0,0.088067]
[1728456712672,0.08246669,62477.0,62475.0,0.11229493]
[1728456712879,0.00240169,62477.0,62475.0,0.11229493]
[1728456713269,0.08246669,62477.0,62475.0,0.11229493]
[1728456713782,0.08246669,62477.0,62476.0,0.080066]
[1728456714473,0.08246669,62477.0,62476.0,0.200066]
[1728456714972,0.08246669,62477.0,62476.0,0.202066]
[1728456715172,0.08246669,62477.0,62476.0,0.206066]
[1728456716878,0.20246669,62477.0,62476.0,0.206066]
[1728456721284,0.20246669,62477.0,62476.0,0.086066]
[1728456721474,0.20246669,62477.0,62476.0,0.206066]
[1728456731984,0.20246669,62477.0,62476.0,0.086066]
[1728456738598,0.23686605,62477.0,62476.0,0.086066]
[1728456738987,0.27680532,62477.0,62476.0,0.086066]
[1728456743389,0.27440363,62477.0,62476.0,0.086066]
[1728456744097,0.23446436,62477.0,62476.0,0.086066]
[1728456744400,0.27439323,62477.0,62476.0,0.086066]
[1728456745597,0.200065,62477.0,62476.0,0.086066]
[1728456759526,0.23444992,62477.0,62476.0,0.086066]
[1728456760525,0.200065,62477.0,62476.0,0.15016339]
[1728456760726,0.200065,62477.0,62476.0,0.07009739]
[1728456760926,0.320065,62477.0,62476.0,0.07009739]
[1728456763826,0.320065,62477.0,62476.0,0.006]
[1728456767335,0.320065,62477.0,62476.0,0.05405802]
[1728456768427,0.320065,62477.0,62476.0,0.006]
[1728456768735,0.35441731,62477.0,62476.0,0.006]
[1728456770026,0.23441731,62477.0,62476.0,0.006]
[1728456770233,0.200065,62477.0,62476.0,0.006]
[1728456774037,0.23444642,62477.0,62476.0,0.006]
[1728456775432,0.200065,62477.0,62476.0,0.006]
[1728456787041,0.080069,62474.0,62467.0,0.04805521]
[1728456787236,0.080069,62474.0,62464.0,0.05175521]
[1728456787237,0.12,62469.0,62464.0,0.05175521]
[1728456787441,0.200079,62466.0,62464.0,0.04805521]
[1728456787743,0.300079,62466.0,62464.0,0.04805521]
[1728456787949,0.300079,62466.0,62465.0,0.38488474]
[1728456788548,0.300079,62466.0,62465.0,0.46496474]
[1728456789950,0.301079,62466.0,62465.0,0.48796474]
[1728456790645,0.302079,62466.0,62465.0,0.54806213]
[1728456793445,0.302079,62466.0,62465.0,0.18726213]
[1728456793746,0.302079,62466.0,62465.0,0.54806213]
[1728456795247,0.302079,62466.0,62465.0,0.48396474]
[1728456795644,0.302079,62466.0,62465.0,0.12316474]
[1728456795847,0.302079,62466.0,62465.0,0.48396474]
[1728456797755,0.302079,62466.0,62465.0,0.12316474]
[1728456797950,0.302079,62466.0,62465.0,0.40388474]
[1728456798147,0.302079,62466.0,62465.0,0.42779736]
[1728456798651,0.302079,62466.0,62465.0,0.3798]
[1728456802353,0.302079,62466.0,62465.0,0.019]
[1728456803245,0.302079,62466.0,62465.0,0.06698933]
[1728456805756,0.182079,62466.0,62465.0,0.019]
[1728456805956,0.182079,62466.0,62465.0,0.09908]
[1728456807454,0.082079,62466.0,62465.0,0.09908]
[1728456807964,0.192079,62466.0,62465.0,0.09908]
[1728456814169,0.192079,62466.0,62465.0,0.16317739]
[1728456814969,0.312079,62466.0,62465.0,0.16317739]
[1728456815262,0.312079,62466.0,62465.0,0.08309739]
[1728456815560,0.312079,62466.0,62465.0,0.019]
[1728456816155,0.312079,62466.0,62465.0,0.08309739]
[1728456818157,0.312079,62466.0,62465.0,0.019]
[1728456836176,0.312079,62466.0,62465.0,0.08308881]
[1728456842880,0.312079,62466.0,62465.0,0.019]
[1728456853084,0.312079,62466.0,62465.0,0.08310695]
[1728456855690,0.312079,62466.0,62465.0,0.09908]
[1728456856885,0.112,62466.0,62465.0,0.09908]
[1728456857503,0.112,62466.0,62465.0,0.17919414]
[1728456857984,0.112,62466.0,62465.0,0.14714183]
[1728456858983,0.112,62466.0,62465.0,0.50794183]
[1728456859177,0.112,62466.0,62465.0,0.45988]
[1728456862288,0.232,62466.0,62465.0,0.45988]
[1728456865000,0.232,62466.0,62465.0,0.09908]
[1728456865191,0.232,62466.0,62465.0,0.45988]
[1728456866195,0.232,62466.0,62465.0,0.09908]
[1728456866394,0.232,62466.0,62465.0,0.45988]
[1728456866594,0.112,62466.0,62465.0,0.57988]
[1728456866793,0.002,62466.0,62465.0,0.57988]
[1728456867095,0.002,62466.0,62465.0,0.76915521]
[1728456867290,0.002,62466.0,62465.0,0.68904107]
[1728456867498,0.002,62466.0,62465.0,0.76908425]
[1728456868699,0.002,62466.0,62465.0,0.65992318]
[1728456868895,0.002,62466.0,62465.0,0.57988]
[1728456869083,0.002,62466.0,62465.0,0.65992318]
[1728456870396,0.002,62466.0,62465.0,0.57988]
[1728456875098,0.0037,62473.0,62465.0,1.66016]
[1728456875299,0.080069,62474.0,62473.0,0.08007]
[1728456876499,0.080069,62474.0,62473.0,0.44087]
[1728456877099,0.080069,62474.0,62473.0,0.44587]
[1728456877900,0.081069,62474.0,62473.0,0.45287]
[1728456880998,0.201069,62474.0,62473.0,0.45287]
[1728456881595,0.201069,62474.0,62473.0,0.4778184]
[1728456883607,0.201069,62474.0,62473.0,0.3977484]
[1728456884204,0.201069,62474.0,62473.0,0.44575575]
[1728456884607,0.201069,62474.0,62473.0,0.3977484]
[1728456885098,0.201069,62474.0,62473.0,0.44575575]
[1728456886298,0.201069,62474.0,62473.0,0.3977484]
[1728456886502,0.201069,62474.0,62473.0,0.44578735]
[1728456887406,0.201069,62474.0,62473.0,0.08498735]